[Event "DVM U12 2024"]
[Site "Heidelberg"]
[Date "2024.12.29"]
[Round "5"]
[White "Shen, Tingrui"]
[Black "Kovalskyy, Alicia"]
[Result "1-0"]
[ECO "D37"]
[WhiteElo "2164"]
[BlackElo "1758"]
[Annotator "ChessBase"]
[PlyCount "69"]
[EventDate "2024.12.23"]
[EventType "team-tourn"]
[EventRounds "7"]
[EventCountry "GER"]
[SourceTitle "playchess.com"]
[Source "ChessBase"]
[SourceQuality "1"]
[TimeControl "40/5400+30:1800+30"]

1. Nf3 {[%emt 0:00:32]} d5 {[%emt 0:00:10]} 2. d4 {[%emt 0:00:51]} Nf6 {[%emt 0:00:12]} 3. c4 {[%emt 0:00:17]} e6 {[%emt 0:00:05]} 4. Nc3 {[%emt 0:00:20]} Be7 {[%emt 0:00:11]} 5. Bf4 {[%emt 0:01:22]} a6 {[%emt 0:01:33]} 6. e3 {[%emt 0:01:40]} O-O {[%emt 0:02:14]} 7. h3 {[%emt 0:03:07]} Nbd7 {[%emt 0:06:16]} 8. c5 {[%emt 0:05:46]} Ne4 {[%emt 0:18:52]} 9. Nxe4 {[%emt 0:04:50]} dxe4 {[%emt 0:01:25]} 10. Ne5 {[%emt 0:04:15]} Nxe5 {[%emt 0:03:05]} 11. Bxe5 {[%emt 0:00:18]} f6 {[%emt 0:03:11]} 12. Bh2 {[%emt 0:01:12]} b6 {[%emt 0:01:38]} 13. b4 {[%emt 0:12:50]} a5 {[%emt 0:07:18]} 14. a3 {[%emt 0:00:25]} Bb7 {[%emt 0:11:04]} 15. Be2 {[%emt 0:01:39]} Qd7 {[%emt 0:02:38]} 16. O-O {[%emt 0:01:45]} axb4 {[%emt 0:02:54]} 17. axb4 {[%emt 0:01:37]} Rxa1 {[%emt 0:00:32]} 18. Qxa1 {[%emt 0:00:21]} Ra8 {[%emt 0:00:28]} 19. Qc3 {[%emt 0:00:22]} bxc5 {[%emt 0:00:48]} 20. bxc5 {[%emt 0:06:15]} Bd5 {[%emt 0:00:57]} 21. Ra1 {[%emt 0:03:00]} Rxa1+ {[%emt 0:03:24]} 22. Qxa1 {[%emt 0:00:17]} c6 {[%emt 0:01:45]} 23. Bg3 {[%emt 0:00:29]} Qb7 {[%emt 0:00:28]} 24. Qa5 {[%emt 0:01:15]} Kf7 {[%emt 0:07:50]} 25. Ba6 {[%emt 0:01:30]} Qd7 {[%emt 0:00:37]} 26. Qb6 {[%emt 0:00:34]} Kg6 {[%emt 0:07:07]} 27. Qb8 {[%emt 0:01:17]} Kf7 {[%emt 0:00:16]} 28. Bc8 {[%emt 0:00:26]} Qe8 {[%emt 0:00:24]} 29. Qb7 {[%emt 0:00:27]} e5 {[%emt 0:06:03]} 30. dxe5 {[%emt 0:00:55]} fxe5 {[%emt 0:01:07]} 31. Bd7 {[%emt 0:00:30]} Qf8 {[%emt 0:01:45]} 32. Bxe5 {[%emt 0:00:56]} Kg6 {[%emt 0:00:36]} 33. Bxc6 {[%emt 0:00:22]} Bf6 {[%emt 0:04:44]} 34. Bd6 {[%emt 0:01:10]} Bxc6 {[%emt 0:01:10]} 35. Qxc6 {[%emt 0:00:19]} 1-0

[Event "DVM U12 2024"]
[Site "Heidelberg"]
[Date "2024.12.29"]
[Round "5"]
[White "Sutharjan, Dakxwin"]
[Black "Sun, Christopher"]
[Result "1/2-1/2"]
[ECO "C09"]
[WhiteElo "1917"]
[BlackElo "1723"]
[Annotator "NA"]
[PlyCount "57"]
[EventDate "2024.12.23"]
[EventType "team-tourn"]
[EventRounds "7"]
[EventCountry "GER"]
[SourceTitle "playchess.com"]
[Source "ChessBase"]
[SourceQuality "1"]
[TimeControl "40/5400+30:1800+30"]

1. e4 {[%emt 0:00:13]} e6 {[%emt 0:00:04]} 2. d4 {[%emt 0:00:11]} d5 {[%emt 0:00:03]} 3. Nd2 {[%emt 0:00:05]} c5 {[%emt 0:00:09]} 4. Ngf3 {[%emt 0:00:19]} Nc6 {[%emt 0:00:50]} 5. exd5 {[%emt 0:00:18]} exd5 {[%emt 0:01:21]} 6. dxc5 {[%emt 0:01:06]} Bxc5 {[%emt 0:00:15]} 7. Nb3 {[%emt 0:00:07]} Be7 {[%emt 0:00:58]} 8. Be2 {[%emt 0:00:52]} Nf6 {[%emt 0:00:07]} 9. O-O {[%emt 0:01:16]} O-O {[%emt 0:00:11]} 10. Bg5 {[%emt 0:01:16]} Bf5 {[%emt 0:00:55]} 11. Nbd4 {[%emt 0:03:01]} Bg6 {[%emt 0:01:15]} 12. c3 {[%emt 0:04:53]} a6 {[%emt 0:01:58]} 13. Re1 {[%emt 0:02:02]} Qc7 {[%emt 0:00:58]} 14. Bd3 {[%emt 0:02:42]} Rad8 {[%emt 0:06:27]} 15. Nxc6 {[%emt 0:08:11]} bxc6 {[%emt 0:01:18]} 16. Bxa6 {[%emt 0:00:20]} Qa7 {[%emt 0:02:28]} 17. Bd3 {[%emt 0:04:55]} Bc5 {[%emt 0:09:01]} 18. Bh4 {[%emt 0:06:07]} Rde8 {[%emt 0:17:20]} 19. Bxg6 {[%emt 0:04:32]} hxg6 {[%emt 0:00:20]} 20. Rxe8 {[%emt 0:02:57]} Rxe8 {[%emt 0:00:09]} 21. Qc2 {[%emt 0:04:46]} Qa6 {[%emt 0:01:46]} 22. b4 {[%emt 0:15:55]} Re2 {[%emt 0:02:47]} 23. Qb3 {[%emt 0:01:21]} Bb6 {[%emt 0:00:49]} 24. a4 {[%emt 0:02:26]} Qd3 {[%emt 0:04:43]} 25. Rd1 {[%emt 0:05:19]} Qe4 {[%emt 0:00:41]} 26. Rf1 {[%emt 0:04:34]} Ng4 {[%emt 0:05:33]} 27. h3 {[%emt 0:03:42]} Nxf2 {[%emt 0:11:35]} 28. Bxf2 {[%emt 0:02:26]} Bxf2+ {[%emt 0:00:10]} 29. Kh1 {[%emt 0:00:12]} 1/2-1/2

[Event "DVM U12 2024"]
[Site "Heidelberg"]
[Date "2024.12.29"]
[Round "5"]
[White "Engelhaupt, Henry"]
[Black "Berndt, Ronson"]
[Result "0-1"]
[ECO "B43"]
[WhiteElo "1905"]
[BlackElo "1812"]
[Annotator "NA RC"]
[PlyCount "190"]
[EventDate "2024.12.23"]
[EventType "team-tourn"]
[EventRounds "7"]
[EventCountry "GER"]
[SourceTitle "playchess.com"]
[Source "ChessBase"]
[SourceQuality "1"]
[TimeControl "40/5400+30:1800+30"]

1. e4 {[%emt 0:00:02]} c5 {[%emt 0:00:08]} 2. Nf3 {[%emt 0:00:04]} e6 {[%emt 0:00:08]} 3. d4 {[%emt 0:00:03]} cxd4 {[%emt 0:00:11]} 4. Nxd4 {[%emt 0:00:03]} a6 {[%emt 0:00:11]} 5. Nc3 {[%emt 0:00:09]} Qc7 {[%emt 0:00:34]} 6. Bd3 {[%emt 0:00:19]} Bc5 {[%emt 0:04:51]} 7. Nb3 {[%emt 0:06:42]} Ba7 {[%emt 0:00:15]} 8. Qe2 {[%emt 0:01:29]} Nc6 {[%emt 0:04:39]} 9. f4 {[%emt 0:04:24]} d6 {[%emt 0:02:16]} 10. Be3 {[%emt 0:02:35]} Bxe3 {[%emt 0:07:49]} 11. Qxe3 {[%emt 0:00:05]} Nf6 {[%emt 0:03:01]} 12. a3 {[%emt 0:02:28]} b5 {[%emt 0:03:44]} 13. Rd1 {[%emt 0:05:25]} Rb8 {[%emt 0:07:04]} 14. O-O {[%emt 0:02:02]} O-O {[%emt 0:00:55]} 15. h3 {[%emt 0:02:51]} Ne7 {[%emt 0:07:03]} 16. Kh1 {[%emt 0:07:39]} Qb6 {[%emt 0:11:52]} 17. Qxb6 {[%emt 0:06:13]} Rxb6 {[%emt 0:00:04]} 18. g3 {[%emt 0:03:25]} Bb7 {[%emt 0:00:32]} 19. Kh2 {[%emt 0:00:10]} Rc8 {[%emt 0:01:40]} 20. Nd2 {[%emt 0:01:27]} d5 {[%emt 0:02:51]} 21. e5 {[%emt 0:00:35]} Nd7 {[%emt 0:00:21]} 22. Nb3 {[%emt 0:00:16]} Nc5 {[%emt 0:00:56]} 23. Nxc5 {[%emt 0:00:10]} Rxc5 {[%emt 0:00:32]} 24. Na2 {[%emt 0:01:26]} Rc8 {[%emt 0:01:54]} 25. c3 {[%emt 0:02:19]} Nc6 {[%emt 0:07:03]} 26. b4 {[%emt 0:01:27]} Ne7 {[%emt 0:01:51]} 27. Rf2 {[%emt 0:00:52]} Rbc6 {[%emt 0:00:37]} 28. g4 {[%emt 0:01:29]} Rf8 {[%emt 0:06:07]} 29. h4 {[%emt 0:03:51]} f6 {[%emt 0:02:56]} 30. exf6 {[%emt 0:00:29]} Rxf6 {[%emt 0:00:00]} 31. Kg3 {[%emt 0:01:00]} Rf8 {[%emt 0:01:15]} 32. h5 {[%emt 0:00:55]} Nc8 {[%emt 0:03:06]} 33. Bc2 {[%emt 0:01:01]} Nb6 {[%emt 0:03:34]} 34. Bb3 {[%emt 0:00:13]} Nc4 {[%emt 0:00:18]} 35. Bxc4 {[%emt 0:00:06]} Rxc4 {[%emt 0:00:26]} 36. Rd4 {[%emt 0:01:23]} Rfc8 {[%emt 0:00:28]} 37. Rfd2 {[%emt 0:00:45]} Kf7 {[%emt 0:01:31]} 38. Rxc4 {[%emt 0:01:35]} Rxc4 {[%emt 0:00:36]} 39. Rd4 {[%emt 0:00:07]} Rc7 {[%emt 0:01:02]} 40. Kf3 {[%emt 0:02:21]} Kf6 {[%emt 0:01:33]} 41. Ke3 {[%emt 0:31:42]} Re7 {[%emt 0:31:57]} 42. Rd1 {[%emt 0:02:51]} e5 {[%emt 0:02:24]} 43. f5 {[%emt 0:00:59]} Kg5 {[%emt 0:00:36]} 44. Rg1 {[%emt 0:00:37]} Rc7 {[%emt 0:00:26]} 45. Kd3 {[%emt 0:01:23]} e4+ {[%emt 0:04:13]} 46. Kd2 {[%emt 0:02:14]} Kf4 {[%emt 0:03:54]} 47. Nc1 {[%emt 0:00:50]} Kf3 {[%emt 0:00:00]} 48. Ne2 {[%emt 0:00:00]} e3+ {[%emt 0:00:00]} 49. Kd3 {[%emt 0:00:00]} Kf2 {[%emt 0:00:00]} 50. Rg3 {[%emt 0:00:00]} Re7 {[%emt 0:00:00]} 51. Rh3 {[%emt 0:00:00]} d4 {[%emt 0:00:00]} 52. Rh2+ {[%emt 0:00:00]} Kf1 {[%emt 0:00:00]} 53. Kxd4 {[%emt 0:00:00]} Bg2 {[%emt 0:00:00]} 54. Kd3 {[%emt 0:00:00]} Rd7+ {[%emt 0:00:00]} 55. Kxe3 {[%emt 0:00:00]} Re7+ {[%emt 0:00:00]} 56. Kd4 {[%emt 0:00:00]} Rxe2 {[%emt 0:00:00]} 57. h6 {[%emt 0:00:00]} Re4+ {[%emt 0:00:00]} 58. Kc5 {[%emt 0:00:00]} Rxg4 {[%emt 0:00:00]} 59. hxg7 {[%emt 0:00:00]} Rxg7 {[%emt 0:00:00]} 60. Kb6 {[%emt 0:00:00]} Bb7 {[%emt 0:00:00]} 61. Ka5 {[%emt 0:00:00]} Rf7 {[%emt 0:00:00]} 62. a4 {[%emt 0:00:00]} bxa4 {[%emt 0:00:00]} 63. Kxa4 {[%emt 0:00:00]} Bc8 {[%emt 0:01:27]} 64. Rh6 {[%emt 0:00:09]} Ke2 {[%emt 0:01:17]} 65. f6 {[%emt 0:00:19]} Kd3 {[%emt 0:00:25]} 66. Ka5 {[%emt 0:01:38]} Kxc3 {[%emt 0:00:40]} 67. b5 {[%emt 0:00:03]} axb5 {[%emt 0:00:27]} 68. Kxb5 {[%emt 0:00:07]} Bf5 {[%emt 0:00:06]} 69. Kc5 {[%emt 0:00:27]} Bg6 {[%emt 0:00:09]} 70. Rh3+ {[%emt 0:00:14]} Kd2 {[%emt 0:01:00]} 71. Rf3 {[%emt 0:00:07]} Ke2 {[%emt 0:00:13]} 72. Rf4 {[%emt 0:01:11]} Ke3 {[%emt 0:00:16]} 73. Rf1 {[%emt 0:00:17]} Bd3 {[%emt 0:00:40]} 74. Re1+ {[%emt 0:00:05]} Kf4 {[%emt 0:00:22]} 75. Kd4 {[%emt 0:01:12]} Rd7+ {[%emt 0:02:02]} 76. Kc3 {[%emt 0:01:53]} Bg6 {[%emt 0:00:18]} 77. Re2 {[%emt 0:01:12]} Kg5 {[%emt 0:00:48]} 78. Rf2 {[%emt 0:00:32]} Rf7 {[%emt 0:00:13]} 79. Kd4 {[%emt 0:00:10]} Rxf6 {[%emt 0:00:25]} 80. Rg2+ {[%emt 0:00:06]} Kh6 {[%emt 0:00:11]} 81. Ke3 {[%emt 0:00:11]} Ra6 {[%emt 0:00:10]} 82. Kf4 {[%emt 0:00:30]} Ra5 {[%emt 0:00:07]} 83. Rb2 {[%emt 0:00:35]} Kg7 {[%emt 0:00:27]} 84. Rb7+ {[%emt 0:00:13]} Bf7 {[%emt 0:00:07]} 85. Kg3 {[%emt 0:00:20]} Ra4 {[%emt 0:00:30]} 86. Rd7 {[%emt 0:00:24]} Kf6 {[%emt 0:00:37]} 87. Rd6+ {[%emt 0:00:15]} Be6 {[%emt 0:00:17]} 88. Rb6 {[%emt 0:00:10]} h5 {[%emt 0:01:31]} 89. Rb8 {[%emt 0:00:58]} Kg5 {[%emt 0:00:41]} 90. Rb7 {[%emt 0:00:16]} Ra3+ {[%emt 0:00:10]} 91. Kh2 {[%emt 0:00:12]} Bg4 {[%emt 0:00:33]} 92. Rb4 {[%emt 0:00:38]} Kh4 {[%emt 0:00:06]} 93. Kg2 {[%emt 0:00:20]} Ra2+ {[%emt 0:00:08]} 94. Kg1 {[%emt 0:00:44]} Kg3 {[%emt 0:00:18]} 95. Rb1 {[%emt 0:00:08]} Rd2 {[%emt 0:00:13]} 0-1

[Event "DVM U12 2024"]
[Site "Heidelberg"]
[Date "2024.12.29"]
[Round "5"]
[White "Fadeev, Justin Michael"]
[Black "Tu, Audrey"]
[Result "1/2-1/2"]
[ECO "C54"]
[WhiteElo "1894"]
[BlackElo "1734"]
[Annotator "NA"]
[PlyCount "50"]
[EventDate "2024.12.23"]
[EventType "team-tourn"]
[EventRounds "7"]
[EventCountry "GER"]
[SourceTitle "playchess.com"]
[Source "ChessBase"]
[SourceQuality "1"]
[TimeControl "40/5400+30:1800+30"]

1. e4 {[%emt 0:00:03]} e5 {[%emt 0:00:01]} 2. Nf3 {[%emt 0:00:06]} Nc6 {[%emt 0:00:08]} 3. d4 {[%emt 0:00:06]} exd4 {[%emt 0:00:03]} 4. Bc4 {[%emt 0:00:08]} Bc5 {[%emt 0:00:04]} 5. c3 {[%emt 0:00:10]} Nf6 {[%emt 0:00:06]} 6. e5 {[%emt 0:00:56]} d5 {[%emt 0:00:12]} 7. Bb5 {[%emt 0:00:05]} Ne4 {[%emt 0:00:08]} 8. cxd4 {[%emt 0:00:08]} Bb6 {[%emt 0:00:04]} 9. Be3 {[%emt 0:00:07]} Bg4 {[%emt 0:03:33]} 10. h3 {[%emt 0:03:47]} Bh5 {[%emt 0:00:54]} 11. Nc3 {[%emt 0:00:50]} O-O {[%emt 0:01:04]} 12. Qc2 {[%emt 0:01:18]} Nxc3 {[%emt 0:00:45]} 13. bxc3 {[%emt 0:00:25]} f6 {[%emt 0:01:52]} 14. Bxc6 {[%emt 0:04:32]} bxc6 {[%emt 0:00:57]} 15. exf6 {[%emt 0:00:50]} Qxf6 {[%emt 0:04:03]} 16. Ne5 {[%emt 0:00:17]} Be8 {[%emt 0:14:23]} 17. O-O {[%emt 0:06:11]} c5 {[%emt 0:06:01]} 18. f4 {[%emt 0:04:22]} c4 {[%emt 0:08:02]} 19. g4 {[%emt 0:12:12]} c6 {[%emt 0:08:17]} 20. Kg2 {[%emt 0:09:36]} Bc7 {[%emt 0:03:17]} 21. Rf2 {[%emt 0:05:11]} Qe7 {[%emt 0:02:36]} 22. Re1 {[%emt 0:03:19]} Bxe5 {[%emt 0:02:19]} 23. dxe5 {[%emt 0:01:05]} c5 {[%emt 0:04:34]} 24. Ree2 {[%emt 0:03:58]} Bc6 {[%emt 0:01:55]} 25. Kg1 {[%emt 0:02:45]} Qh4 {[%emt 0:04:07]} 1/2-1/2

[Event "DVM U12 2024"]
[Site "Heidelberg"]
[Date "2024.12.29"]
[Round "5"]
[White "Kraus, Linus"]
[Black "Gersemann, Karl"]
[Result "0-1"]
[ECO "E05"]
[WhiteElo "1803"]
[BlackElo "2012"]
[Annotator "NA"]
[PlyCount "74"]
[EventDate "2024.12.23"]
[EventType "team-tourn"]
[EventRounds "7"]
[EventCountry "GER"]
[SourceTitle "playchess.com"]
[Source "ChessBase"]
[SourceQuality "1"]
[TimeControl "40/5400+30:1800+30"]

1. Nf3 {[%emt 0:00:03]} Nf6 {[%emt 0:00:29]} 2. g3 {[%emt 0:00:08]} e6 {[%emt 0:00:06]} 3. Bg2 {[%emt 0:00:09]} d5 {[%emt 0:00:05]} 4. d4 {[%emt 0:00:08]} Be7 {[%emt 0:00:06]} 5. c4 {[%emt 0:00:16]} O-O {[%emt 0:00:08]} 6. Qc2 {[%emt 0:00:13]} dxc4 {[%emt 0:01:03]} 7. O-O {[%emt 0:05:12]} b5 {[%emt 0:00:09]} 8. a4 {[%emt 0:02:18]} b4 {[%emt 0:00:08]} 9. Bg5 {[%emt 0:03:00]} Nbd7 {[%emt 0:06:07]} 10. Qxc4 {[%emt 0:06:30]} a5 {[%emt 0:05:26]} 11. Bxf6 {[%emt 0:04:05]} Nxf6 {[%emt 0:01:26]} 12. b3 {[%emt 0:04:03]} Ba6 {[%emt 0:03:42]} 13. Qc2 {[%emt 0:00:36]} Rc8 {[%emt 0:01:09]} 14. Ra2 {[%emt 0:12:02]} c5 {[%emt 0:00:44]} 15. dxc5 {[%emt 0:01:04]} Bxc5 {[%emt 0:01:55]} 16. Qd1 {[%emt 0:03:15]} Qb6 {[%emt 0:01:03]} 17. Ne5 {[%emt 0:02:28]} Bd6 {[%emt 0:06:39]} 18. Nd7 {[%emt 0:02:38]} Nxd7 {[%emt 0:00:17]} 19. Rd2 {[%emt 0:00:08]} Bxg3 {[%emt 0:00:56]} 20. hxg3 {[%emt 0:00:21]} Nc5 {[%emt 0:02:16]} 21. Rd6 {[%emt 0:01:07]} Qb8 {[%emt 0:00:38]} 22. Bf3 {[%emt 0:02:50]} Rfd8 {[%emt 0:02:02]} 23. Rxd8+ {[%emt 0:02:02]} Rxd8 {[%emt 0:00:07]} 24. Qc2 {[%emt 0:00:35]} Qe5 {[%emt 0:04:18]} 25. Rc1 {[%emt 0:01:55]} Rc8 {[%emt 0:01:12]} 26. Nd2 {[%emt 0:00:34]} f5 {[%emt 0:11:28]} 27. Nc4 {[%emt 0:03:08]} Qc7 {[%emt 0:01:45]} 28. e4 {[%emt 0:04:10]} Nxb3 {[%emt 0:03:50]} 29. Qxb3 {[%emt 0:00:47]} Bxc4 {[%emt 0:00:04]} 30. Qc2 {[%emt 0:00:17]} Qb7 {[%emt 0:04:47]} 31. Qd1 {[%emt 0:03:43]} fxe4 {[%emt 0:02:30]} 32. Bg4 {[%emt 0:00:05]} Kf7 {[%emt 0:06:52]} 33. Qd6 {[%emt 0:01:22]} Bd5 {[%emt 0:02:00]} 34. Re1 {[%emt 0:22:09]} Qc7 {[%emt 0:02:11]} 35. Qa6 {[%emt 0:01:05]} Bc4 {[%emt 0:00:06]} 36. Bxe6+ {[%emt 0:00:35]} Bxe6 {[%emt 0:00:25]} 37. Rxe4 {[%emt 0:00:09]} Bc4 {[%emt 0:01:10]} 0-1

[Event "DVM U12 2024"]
[Site "Heidelberg"]
[Date "2024.12.29"]
[Round "5"]
[White "Vu Hoang Bach"]
[Black "Zimmer, Tim"]
[Result "1-0"]
[ECO "E14"]
[WhiteElo "1779"]
[BlackElo "1846"]
[Annotator "NA"]
[PlyCount "77"]
[EventDate "2024.12.23"]
[EventType "team-tourn"]
[EventRounds "7"]
[EventCountry "GER"]
[SourceTitle "playchess.com"]
[Source "ChessBase"]
[SourceQuality "1"]
[TimeControl "40/5400+30:1800+30"]

1. b3 {[%emt 0:00:01]} Nf6 {[%emt 0:00:27]} 2. Bb2 {[%emt 0:00:04]} d5 {[%emt 0:01:19]} 3. e3 {[%emt 0:00:21]} e6 {[%emt 0:01:19]} 4. Nf3 {[%emt 0:00:11]} Be7 {[%emt 0:01:22]} 5. c4 {[%emt 0:01:10]} O-O {[%emt 0:02:35]} 6. Nc3 {[%emt 0:03:29]} b6 {[%emt 0:02:29]} 7. cxd5 {[%emt 0:00:10]} exd5 {[%emt 0:05:36]} 8. d4 {[%emt 0:00:09]} Bb7 {[%emt 0:00:49]} 9. Be2 {[%emt 0:00:49]} Nbd7 {[%emt 0:01:19]} 10. O-O {[%emt 0:00:57]} Ne4 {[%emt 0:06:59]} 11. Rc1 {[%emt 0:00:35]} a6 {[%emt 0:03:31]} 12. Qc2 {[%emt 0:00:42]} Rc8 {[%emt 0:03:06]} 13. Ne5 {[%emt 0:03:27]} Bd6 {[%emt 0:18:40]} 14. Nxe4 {[%emt 0:01:30]} dxe4 {[%emt 0:01:29]} 15. Nc4 {[%emt 0:00:21]} Be7 {[%emt 0:01:13]} 16. Rfd1 {[%emt 0:00:50]} f5 {[%emt 0:05:50]} 17. Ne5 {[%emt 0:02:04]} b5 {[%emt 0:03:03]} 18. Nc6 {[%emt 0:02:50]} Qe8 {[%emt 0:02:07]} 19. Nxe7+ {[%emt 0:02:41]} Qxe7 {[%emt 0:00:34]} 20. g3 {[%emt 0:00:37]} Bd5 {[%emt 0:06:01]} 21. Qd2 {[%emt 0:02:29]} Rf7 {[%emt 0:06:07]} 22. Qa5 {[%emt 0:01:09]} Nb8 {[%emt 0:00:58]} 23. Rc5 {[%emt 0:00:58]} c6 {[%emt 0:00:28]} 24. Rdc1 {[%emt 0:00:25]} Re8 {[%emt 0:00:46]} 25. a4 {[%emt 0:00:40]} Bxb3 {[%emt 0:03:02]} 26. axb5 {[%emt 0:00:08]} axb5 {[%emt 0:00:24]} 27. d5 {[%emt 0:02:33]} Bxd5 {[%emt 0:09:37]} 28. Bxb5 {[%emt 0:00:12]} Qd8 {[%emt 0:01:30]} 29. Qd2 {[%emt 0:01:18]} Rd7 {[%emt 0:02:09]} 30. Ba4 {[%emt 0:00:12]} Bb3 {[%emt 0:00:27]} 31. Bxb3+ {[%emt 0:00:04]} Kh8 {[%emt 0:00:30]} 32. Qc3 {[%emt 0:00:23]} Ree7 {[%emt 0:01:39]} 33. Rxf5 {[%emt 0:00:51]} Rd3 {[%emt 0:00:36]} 34. Qc4 {[%emt 0:00:11]} Nd7 {[%emt 0:01:34]} 35. Bc2 {[%emt 0:01:45]} Rd2 {[%emt 0:00:14]} 36. Bd4 {[%emt 0:00:20]} c5 {[%emt 0:01:11]} 37. Bxc5 {[%emt 0:00:14]} Nxc5 {[%emt 0:01:51]} 38. Rxc5 {[%emt 0:00:08]} Rxf2 {[%emt 0:04:24]} 39. Rc8 {[%emt 0:00:16]} 1-0

[Event "DVM U12 2024"]
[Site "Heidelberg"]
[Date "2024.12.29"]
[Round "5"]
[White "Tryk, Paul-Luca"]
[Black "El Guettabi, Anas"]
[Result "1-0"]
[ECO "C02"]
[WhiteElo "1777"]
[BlackElo "1067"]
[Annotator "NA"]
[PlyCount "111"]
[EventDate "2024.12.23"]
[EventType "team-tourn"]
[EventRounds "7"]
[EventCountry "GER"]
[SourceTitle "playchess.com"]
[Source "ChessBase"]
[SourceQuality "1"]
[TimeControl "40/5400+30:1800+30"]

1. e4 {[%emt 0:00:03]} e6 {[%emt 0:00:04]} 2. d4 {[%emt 0:00:14]} d5 {[%emt 0:00:10]} 3. e5 {[%emt 0:00:07]} c5 {[%emt 0:00:14]} 4. c3 {[%emt 0:00:13]} Ne7 {[%emt 0:00:18]} 5. Nf3 {[%emt 0:00:44]} Nbc6 {[%emt 0:00:18]} 6. Na3 {[%emt 0:00:45]} Qb6 {[%emt 0:00:45]} 7. Be2 {[%emt 0:02:03]} cxd4 {[%emt 0:02:20]} 8. cxd4 {[%emt 0:00:15]} Nf5 {[%emt 0:00:13]} 9. Nc2 {[%emt 0:00:16]} Bb4+ {[%emt 0:06:44]} 10. Kf1 {[%emt 0:02:23]} Bd7 {[%emt 0:01:01]} 11. a3 {[%emt 0:00:19]} Be7 {[%emt 0:00:15]} 12. b4 {[%emt 0:04:22]} a6 {[%emt 0:02:36]} 13. Bb2 {[%emt 0:04:13]} O-O-O {[%emt 0:00:59]} 14. Ne3 {[%emt 0:10:11]} Nh4 {[%emt 0:06:36]} 15. Nxh4 {[%emt 0:00:20]} Bxh4 {[%emt 0:00:09]} 16. g3 {[%emt 0:00:03]} Be7 {[%emt 0:00:09]} 17. Kg2 {[%emt 0:00:26]} f6 {[%emt 0:00:18]} 18. Rc1 {[%emt 0:02:52]} Kb8 {[%emt 0:04:52]} 19. Qd2 {[%emt 0:03:34]} Be8 {[%emt 0:04:14]} 20. Rhd1 {[%emt 0:08:59]} fxe5 {[%emt 0:04:46]} 21. dxe5 {[%emt 0:00:11]} Bg5 {[%emt 0:01:42]} 22. f4 {[%emt 0:00:27]} Bh6 {[%emt 0:00:16]} 23. Bd4 {[%emt 0:00:16]} Nxd4 {[%emt 0:01:27]} 24. Qxd4 {[%emt 0:00:17]} Qxd4 {[%emt 0:00:04]} 25. Rxd4 {[%emt 0:00:08]} g5 {[%emt 0:00:15]} 26. Ng4 {[%emt 0:00:23]} Bf8 {[%emt 0:01:11]} 27. Nf6 {[%emt 0:00:58]} Be7 {[%emt 0:01:18]} 28. fxg5 {[%emt 0:00:51]} Bxf6 {[%emt 0:01:31]} 29. gxf6 {[%emt 0:00:17]} Rg8 {[%emt 0:00:17]} 30. Bd3 {[%emt 0:02:19]} h6 {[%emt 0:00:48]} 31. h3 {[%emt 0:02:55]} Bg6 {[%emt 0:02:43]} 32. Bxg6 {[%emt 0:00:53]} Rxg6 {[%emt 0:00:21]} 33. h4 {[%emt 0:00:50]} Rdg8 {[%emt 0:00:32]} 34. Rc3 {[%emt 0:01:02]} h5 {[%emt 0:02:05]} 35. a4 {[%emt 0:02:08]} b6 {[%emt 0:00:39]} 36. a5 {[%emt 0:00:43]} b5 {[%emt 0:00:19]} 37. Kh3 {[%emt 0:02:48]} Kb7 {[%emt 0:01:19]} 38. Kg2 {[%emt 0:04:35]} Kb8 {[%emt 0:03:19]} 39. Kf2 {[%emt 0:05:43]} Kb7 {[%emt 0:02:42]} 40. Ke2 {[%emt 0:02:46]} Kb8 {[%emt 0:03:11]} 41. Rf4 {[%emt 0:33:42]} Kb7 {[%emt 0:31:16]} 42. f7 {[%emt 0:02:21]} Rf8 {[%emt 0:00:11]} 43. Rcf3 {[%emt 0:01:51]} Kc7 {[%emt 0:00:35]} 44. Kd3 {[%emt 0:00:19]} Rg7 {[%emt 0:01:17]} 45. Kd4 {[%emt 0:00:17]} Kc6 {[%emt 0:00:15]} 46. Rf6 {[%emt 0:00:13]} Rg4+ {[%emt 0:01:30]} 47. R3f4 {[%emt 0:00:46]} Rg7 {[%emt 0:00:46]} 48. Rxe6+ {[%emt 0:00:19]} Kd7 {[%emt 0:00:21]} 49. Rxa6 {[%emt 0:00:12]} Kc7 {[%emt 0:02:13]} 50. e6 {[%emt 0:01:16]} Kd8 {[%emt 0:05:27]} 51. Ra8+ {[%emt 0:00:19]} Ke7 {[%emt 0:00:04]} 52. Rxf8 {[%emt 0:00:20]} Kxf8 {[%emt 0:00:07]} 53. e7+ {[%emt 0:00:23]} Kxe7 {[%emt 0:00:19]} 54. f8=Q+ {[%emt 0:00:07]} Kd7 {[%emt 0:00:33]} 55. Qxg7+ {[%emt 0:00:12]} Kc8 {[%emt 0:00:13]} 56. Rf8# {[%emt 0:00:07]} 1-0

[Event "DVM U12 2024"]
[Site "Heidelberg"]
[Date "2024.12.29"]
[Round "5"]
[White "Mao, Leo"]
[Black "Beier, Martin"]
[Result "1/2-1/2"]
[ECO "D05"]
[WhiteElo "1752"]
[BlackElo "1705"]
[Annotator "NA"]
[PlyCount "80"]
[EventDate "2024.12.23"]
[EventType "team-tourn"]
[EventRounds "7"]
[EventCountry "GER"]
[SourceTitle "playchess.com"]
[Source "ChessBase"]
[SourceQuality "1"]
[TimeControl "40/5400+30:1800+30"]

1. Nf3 {[%emt 0:00:04]} e6 {[%emt 0:00:25]} 2. d4 {[%emt 0:00:07]} d5 {[%emt 0:00:04]} 3. e3 {[%emt 0:00:11]} Nf6 {[%emt 0:00:11]} 4. Bd3 {[%emt 0:00:19]} Bd6 {[%emt 0:00:06]} 5. Nbd2 {[%emt 0:00:21]} c5 {[%emt 0:00:54]} 6. c3 {[%emt 0:08:00]} O-O {[%emt 0:03:51]} 7. O-O {[%emt 0:01:55]} b6 {[%emt 0:00:23]} 8. e4 {[%emt 0:01:51]} dxe4 {[%emt 0:00:16]} 9. Nxe4 {[%emt 0:00:13]} Bb7 {[%emt 0:00:36]} 10. Bg5 {[%emt 0:00:49]} cxd4 {[%emt 0:03:59]} 11. Nxf6+ {[%emt 0:01:11]} gxf6 {[%emt 0:00:13]} 12. Bh6 {[%emt 0:00:34]} Re8 {[%emt 0:02:39]} 13. Nxd4 {[%emt 0:00:26]} f5 {[%emt 0:02:09]} 14. Qh5 {[%emt 0:10:10]} Qf6 {[%emt 0:08:18]} 15. Nb5 {[%emt 0:03:06]} Rd8 {[%emt 0:05:06]} 16. Bg5 {[%emt 0:06:17]} Qg7 {[%emt 0:00:31]} 17. g3 {[%emt 0:18:06]} Rd7 {[%emt 0:04:40]} 18. Rfd1 {[%emt 0:03:15]} Nc6 {[%emt 0:06:51]} 19. Bxf5 {[%emt 0:03:20]} Ne5 {[%emt 0:07:09]} 20. Bh6 {[%emt 0:06:36]} Qf6 {[%emt 0:01:13]} 21. Bxh7+ {[%emt 0:00:54]} Kh8 {[%emt 0:00:18]} 22. Nxd6 {[%emt 0:07:30]} Bf3 {[%emt 0:05:32]} 23. Qh3 {[%emt 0:09:09]} Bg4 {[%emt 0:01:21]} 24. Ne4 {[%emt 0:07:21]} Qf3 {[%emt 0:03:59]} 25. Qf1 {[%emt 0:00:00]} Rxd1 {[%emt 0:01:49]} 26. Rxd1 {[%emt 0:01:07]} Qxd1 {[%emt 0:00:22]} 27. Qxd1 {[%emt 0:00:34]} Bxd1 {[%emt 0:00:07]} 28. Nf6 {[%emt 0:00:29]} Bf3 {[%emt 0:01:14]} 29. Bc2 {[%emt 0:02:22]} Rd8 {[%emt 0:01:12]} 30. Bf4 {[%emt 0:00:46]} Nd3 {[%emt 0:05:31]} 31. Bc7 {[%emt 0:02:24]} Rc8 {[%emt 0:02:00]} 32. Bxd3 {[%emt 0:00:08]} Rxc7 {[%emt 0:00:19]} 33. Kf1 {[%emt 0:00:58]} e5 {[%emt 0:03:35]} 34. Be4 {[%emt 0:01:54]} Bxe4 {[%emt 0:01:19]} 35. Nxe4 {[%emt 0:00:07]} f5 {[%emt 0:00:36]} 36. Nd2 {[%emt 0:00:47]} Kg7 {[%emt 0:00:47]} 37. Ke2 {[%emt 0:00:21]} Kg6 {[%emt 0:01:02]} 38. h3 {[%emt 0:00:31]} a5 {[%emt 0:01:55]} 39. Nf3 {[%emt 0:00:44]} e4 {[%emt 0:01:35]} 40. Nd4 {[%emt 0:00:14]} Kf6 {[%emt 0:02:13]} 1/2-1/2